fUST/lending_fUST_20260202
["ID","MTS","AMOUNT","RATE_DAILY","PERIOD"]
[404287453,1770034174328,-151.18,0.00037405,60]
[404287454,1770034174348,-159.55,0.00037505,60]
[404287455,1770034174368,-151.18,0.00037505,60]
[404287456,1770034174388,-626.12180841,0.00037505,60]
[404287457,1770034174408,-159.55,0.00037605,60]
[404287458,1770034174430,-151.18,0.00037605,60]
[404287459,1770034174450,-600.0,0.00037643,30]
[404287460,1770034174470,-159.56,0.00037705,60]
[404287461,1770034174490,-151.18,0.00037705,60]
[404287462,1770034174509,-334.94188757,0.00037804,120]
[404287463,1770034174529,-151.18,0.00037805,60]
[404287464,1770034174549,-151.18,0.00037905,60]
[404287465,1770034174569,-151.18,0.00038005,60]
[404287466,1770034174589,-151.18,0.00038105,60]
[404287467,1770034190272,4848.92792971,0.00024953,2]
[404287487,1770034232420,-151.07207029,0.00024953,2]
[404287489,1770034232430,-151.18,0.00038205,60]
[404287491,1770034232440,-151.18,0.00038305,60]
[404287493,1770034232449,-151.18,0.00038405,120]
[404287495,1770034232458,-151.18,0.00038505,120]
[404287497,1770034232468,-151.18,0.00038605,120]
[404287499,1770034232477,-500.0,0.00038659,120]
[404287501,1770034232487,-500.0,0.0003866,120]
[404287503,1770034232496,-500.0,0.0003866,120]
[404287505,1770034232505,-151.18,0.00038705,120]
[404287507,1770034232514,-151.18,0.00038805,120]
[404287509,1770034232524,-151.18,0.00038905,120]
[404287510,1770034232534,-151.18,0.00039005,120]
[404287512,1770034232543,-151.18,0.00039105,120]
[404287513,1770034232553,-151.18,0.00039205,120]
[404287514,1770034232562,-151.18,0.00039305,120]
[404287515,1770034232572,-151.18,0.00039405,120]
[404287516,1770034232582,-151.18,0.00039505,120]
[404287517,1770034232591,-151.18,0.00039605,120]
[404287518,1770034232600,-151.18,0.00039705,120]
[404287519,1770034232610,-151.28656606,0.00039805,120]
[404287520,1770034232619,-2302.02884197,0.000399,2]
[404287521,1770034232628,-262.36109445,0.0003999,3]
[404287524,1770034236584,-2886.24772755,0.00024703,2]
[404287525,1770034236638,-1857.86530504,0.00024703,2]
[404287526,1770034236649,-255.88696741,0.00024703,2]
[404287527,1770034236658,-358.46705108,0.0003999,3]
[404287531,1770034238572,-13261.37099637,0.0003999,3]
[404287532,1770034238582,-740.75809701,0.0003999,3]
[404287533,1770034238591,-283.33627037,0.00039999,31]
[404287534,1770034238600,-285470.0,0.0004,2]
[404287535,1770034238610,-297.15,0.0004,30]
[404287536,1770034238619,-1000.0,0.00040247,2]
[404287537,1770034238628,-1000.0,0.00040247,2]
[404287538,1770034238638,-1000.0,0.00040247,2]
[404287539,1770034238647,-1000.0,0.00040247,2]
[404287540,1770034238657,-316.0,0.00040247,2]
[404287541,1770034238666,-600.0,0.00040295,60]
[404287543,1770034238675,-2000.0,0.00040968,7]
[404287545,1770034238684,-656.01084758,0.00042358,60]
[404287546,1770034238695,-2530.46,0.00042358,60]
[404287980,1770034245070,-604.2715311,0.00042358,60]
[404288031,1770034245696,-280.000003,0.00042358,60]
[404288036,1770034245750,-82.34260091,0.00042358,60]
[404288136,1770034246814,-4093.79414341,0.00042358,60]
[404288138,1770034246824,-5471.928994,0.0004275,60]
[404288140,1770034246833,-168.0,0.00042967,2]
[404288142,1770034246842,-2776.43982837,0.00043061,3]
[404288144,1770034246850,-168.0,0.0004343,2]
[404288146,1770034246859,-249.0,0.00043583,2]
[404288148,1770034246869,-168.0,0.00043761,2]
[404288150,1770034246878,-251.0,0.00043762,7]
[404288151,1770034246887,-9492.98155166,0.00044,30]
[404288443,1770035229152,-263.91537734,0.00030137,120]
[404288444,1770035232092,-151.24,0.00036507,60]
[404288445,1770035232115,-151.24,0.00036607,60]
[404288446,1770035232138,-119.4594657,0.00036707,60]
[404288447,1770035284092,542.05501309,0.00013699,2]
[404288460,1770035347088,-7759.62664074,0.00018,2]
[404288461,1770035347109,-300.0,0.00026848,2]
[404288462,1770035347128,-420.0,0.0002903,2]
[404288463,1770035347150,-5000.0,0.00030137,120]
[404288464,1770035347170,-535.0,0.0003139,2]
[404288465,1770035347190,-264.21834053,0.00035,120]
[404288466,1770035347211,-1753.58376999,0.00035,5]
[404288467,1770035365495,3697.87444844,0.00030137,120]
[404288468,1770035365515,1302.12555156,0.00030137,120]
[404288469,1770035388491,2938.33444844,0.00030137,120]
[404288470,1770035388514,2061.66555156,0.00030137,120]
[404288471,1770035410726,1049.43384306,0.00030137,120]
[404288657,1770035438457,-2844.9653389,0.00030137,120]
[404288658,1770035438473,-1105.60081804,0.00030137,120]
[404288659,1770035438487,-380.0,0.00032418,2]
[404288660,1770035438499,-315.70632935,0.00036,30]
[404288661,1770035438644,-820.42731937,0.00036,30]
[404289147,1770035444702,-5131.23081191,0.00036,30]
[404289159,1770035444822,-18814.99137857,0.00036,30]
[404289515,1770035448230,-608.11491716,0.00036,30]
[404289516,1770035448241,-1405.55863811,0.00036,30]
[404289517,1770035448251,-31.7905343,0.00036707,60]
[404289518,1770035448260,-1074.95629475,0.00039219,20]
[404289519,1770035448269,-196.0,0.00039247,57]
[404289520,1770035448279,-200.0,0.0004,120]
[404289521,1770035448288,-270.2315572,0.0004002,2]
[404289523,1770035448297,-1000.0,0.00040219,2]
[404289525,1770035448306,-1000.0,0.00040219,2]
[404289527,1770035448315,-500.0,0.00040219,2]
[404289529,1770035448324,-947.770185,0.0004179,2]
[404289531,1770035448333,-200.0,0.00042,120]
[404289533,1770035448342,-200.0,0.00043,120]
[404289535,1770035448351,-763.0,0.00043011,2]
[404289537,1770035448360,-763.0,0.00043199,7]
[404289539,1770035448369,-2711.828638,0.00043245,60]
[404289541,1770035448379,-7038.011591,0.00043245,60]
[404289543,1770035448388,-233.48137398,0.00043391,2]
[404289545,1770035448397,-500.0,0.00043491,31]
[404289547,1770035448406,-341.2027334,0.00043491,7]
[404289598,1770036343120,-150.0,0.00025543,2]
[404289599,1770036343143,-479.93934409,0.00026556,2]
[404289614,1770036426086,-172.61935286,0.00024953,2]
[404289615,1770036427114,-359.80874534,0.00024953,2]
[404289616,1770036430095,-97.51124589,0.00024953,2]
[404289617,1770036430127,-600.96832287,0.00026556,2]
[404289619,1770036516153,13000.0,0.00030136,120]
[404289620,1770036534437,9457.95498691,0.00017,2]
[404289621,1770036534462,542.04501309,0.00017,2]
[404289622,1770036545110,-5000.0,0.00024953,2]
[404289623,1770036545131,-150.0,0.00025079,2]
[404289624,1770036545149,-2173.09233304,0.00026556,2]
[404289625,1770036545168,-300.0,0.00026848,2]
[404289626,1770036545189,-177.0,0.00027079,2]
[404289627,1770036545209,-204.0,0.00029079,2]
[404289628,1770036545228,-200.5,0.0003,2]
[404289629,1770036545248,-500.0,0.00030137,2]
[404289630,1770036545270,-500.0,0.00030137,7]
[404289631,1770036545290,-500.0,0.00030137,2]
[404289632,1770036545311,-500.0,0.00030137,2]
[404289633,1770036545330,-403.25,0.00030137,10]
[404289634,1770036545352,-231.0,0.00031079,2]
[404289635,1770036545374,-400.54,0.00031644,30]
[404289636,1770036545396,-179.74165614,0.00031689,10]
[404289637,1770036545419,-511.100115,0.00032,2]
[404289638,1770036545439,-849.5,0.00033,2]
[404289639,1770036545458,-400.54,0.00033151,30]
[404289640,1770036545479,-211.08315559,0.00033641,7]
[404289641,1770036545502,-500.0,0.00033641,7]
[404289642,1770036545523,-500.0,0.00033641,7]
[404289643,1770036545543,-500.0,0.00033641,7]
[404289644,1770036545562,-284.00894222,0.00033641,7]
[404289645,1770036545582,-565.72063579,0.00033641,7]
[404289646,1770036545605,-500.0,0.00033641,7]
[404289647,1770036545628,-500.0,0.00033641,7]
[404289648,1770036545650,-208.49576624,0.00033641,7]
[404289649,1770036549136,-291.50423376,0.00033641,7]
[404289650,1770036549156,-528.97108514,0.00033644,2]
[404289651,1770036549191,-5937.88112596,0.00033644,2]
[404289652,1770036549211,-1000.0,0.00035,2]
[404289653,1770036549231,-1000.0,0.00035,2]
[404289654,1770036554738,500.0,0.00013699,2]
[404289655,1770036554786,1000.0,0.00014247,2]
[404289656,1770036554842,865.78800948,0.00014795,2]
[404289657,1770036558577,500.0,0.00013273,2]
[404289658,1770036558630,1000.0,0.00013821,2]
[404289659,1770036559132,300.0,0.00013673,2]
[404289660,1770036559183,693.63223956,0.00014221,2]
[404289661,1770036562377,95.79344345,0.00013699,2]
[404289662,1770036562399,81.98920561,0.00013699,2]
[404289663,1770036563778,2115.28771059,0.00024953,2]
[404289664,1770036567088,-2884.71228941,0.00024953,2]
[404289665,1770036567107,-500.0,0.00035999,120]
[404289666,1770036567223,-500.0,0.00035999,120]
[404289667,1770036567250,-150.81,0.0003648,60]
[404289668,1770036587124,4265.89251233,0.00030137,120]
[404289669,1770036597471,-4005.4316117,0.00039212,120]
[404289670,1770036609628,3000.0,0.00039212,120]
[404289783,1770036631915,-149.999999,0.00018,2]
[404289784,1770036631925,-328.16109691,0.00030137,120]
[404289785,1770036631972,-405.94639076,0.00030137,120]
[404289786,1770036631981,-714.1887836,0.00036553,30]
[404289787,1770036631991,-150.81,0.0003658,60]
[404289788,1770036632000,-150.81,0.0003668,60]
[404289789,1770036632009,-150.81,0.0003678,60]
[404289790,1770036632019,-150.81,0.0003688,60]
[404289791,1770036632029,-150.81,0.0003698,60]
[404289792,1770036632038,-178.98983104,0.0003698,47]
[404289793,1770036632048,-180.607,0.0003698,47]
[404289794,1770036632057,-2000.0,0.00039212,30]
[404289795,1770036632067,-1000.0,0.00039212,30]
[404289796,1770036632076,-1000.0,0.00039212,30]
[404289797,1770036632086,-1000.0,0.00039212,30]
[404289798,1770036632096,-1000.0,0.00039212,30]
[404289799,1770036632105,-248.0,0.00039219,57]
[404289800,1770036632114,-1000.0,0.000393,29]
[404289801,1770036632124,-273.137129,0.00039693,2]
[404289802,1770036632133,-500.0,0.00040822,2]
[404289803,1770036632142,-150.0,0.00040822,2]
[404289804,1770036632152,-500.0,0.00040959,2]
[404289805,1770036632161,-150.0,0.00040959,2]
[404289806,1770036632170,-162.42373043,0.00041096,2]
[404289807,1770036632179,-500.0,0.00041096,2]
[404289808,1770036632189,-150.0,0.00041096,2]
[404289809,1770036632198,-500.0,0.00041233,2]
[404289810,1770036632207,-150.0,0.00041233,2]
[404289811,1770036632216,-500.0,0.0004137,2]
[404289812,1770036632225,-257.68010126,0.0004137,2]
[404289813,1770036632234,-500.0,0.00041507,2]
[404289814,1770036632244,-500.0,0.00041644,2]
[404289815,1770036632253,-500.0,0.00041781,2]
[404289816,1770036632262,-4312.106445,0.00042147,60]
[404289817,1770036632271,-838.84683443,0.00042147,60]
[404289823,1770036638139,-2107.05308959,0.00042147,60]
[404289824,1770036638199,-401.54445098,0.00042147,60]
[404289825,1770036638209,-1076.29706022,0.00042313,60]
[404289826,1770036638497,-103.87801678,0.00042313,60]
[404289827,1770036638507,-500.0,0.0004258,31]
[404289828,1770036638517,-240.83300574,0.0004258,31]
[404289829,1770036638527,-116.17200335,0.0004258,31]
[404290412,1770036646261,-383.82799665,0.0004258,31]
[404290414,1770036646271,-500.0,0.0004258,31]
[404290416,1770036646280,-489.11812926,0.0004258,31]
[404290418,1770036646291,-500.0,0.00042613,120]
[404290420,1770036646300,-500.0,0.00042613,60]
[404290422,1770036646310,-500.0,0.0004275,120]
[404290424,1770036646320,-500.0,0.0004275,60]
[404290427,1770036646331,-348.87638643,0.00042887,120]
[404290429,1770036646344,-151.12361357,0.00042887,120]
[404290431,1770036646354,-500.0,0.00042887,60]
[404290433,1770036646363,-3048.39920846,0.00043,120]
[404290435,1770036646374,-461.02753643,0.00043,120]
[404290492,1770036646902,-55.57325511,0.00043,120]
[404290494,1770036646913,-500.0,0.00043024,120]
[404290496,1770036646922,-186.7850992,0.00043143,2]
[404290498,1770036646931,-500.0,0.00043161,120]
[404290500,1770036646944,-425.02120771,0.00043244,120]
[404290502,1770036646954,-500.0,0.00043298,120]
[404290504,1770036646963,-186.78509916,0.00043358,2]
[404290506,1770036646972,-500.0,0.00043435,120]
[404290508,1770036646981,-947.770185,0.00043549,2]
[404290510,1770036646991,-219.02066887,0.00043562,120]
[404290512,1770036647000,-500.0,0.00043572,120]
[404290514,1770036647010,-186.78509916,0.00043574,2]
[404290516,1770036647019,-180.28637051,0.00043667,7]
[404290518,1770036647028,-500.0,0.00043709,120]
[404290520,1770036647037,-150.0,0.00043726,30]
[404290522,1770036647046,-150.0,0.00043726,30]
[404290524,1770036647055,-500.0,0.00043726,30]
[404290526,1770036647064,-150.0,0.00043726,30]
[404290528,1770036647072,-150.74760261,0.00043726,30]
[404290530,1770036647082,-500.0,0.00043726,30]
[404290532,1770036647091,-500.0,0.00043726,30]
[404290534,1770036647100,-500.0,0.00043726,30]
[404290536,1770036647109,-500.0,0.00043726,30]
[404290538,1770036647118,-155.25227098,0.00043726,30]
[404290540,1770036647127,-151.09720304,0.00043726,30]
[404290542,1770036647136,-202.64390128,0.00043726,30]
[404290544,1770036647145,-150.0,0.00043726,30]
[404290546,1770036647155,-500.0,0.00043726,30]
[404290548,1770036647163,-191.77684451,0.00043726,30]
[404290550,1770036647172,-250.34228489,0.00043726,30]
[404290552,1770036647182,-186.78509916,0.00043789,2]
[404290554,1770036647191,-3829.775409,0.00043794,60]
[404290556,1770036647200,-2500.0,0.000438,4]
[404290558,1770036647209,-500.0,0.00043846,120]
[404290560,1770036647218,-513.89261441,0.00043863,30]
[404290562,1770036647228,-500.0,0.00043863,30]
[404290564,1770036647237,-500.0,0.00043863,30]
[404290566,1770036647246,-194.65116397,0.00043863,30]
[404290569,1770036647258,-305.34883603,0.00043863,30]
[404290571,1770036647267,-320.81228946,0.00043863,30]
[404290699,1770036666803,500.0,0.00013699,2]
[404290778,1770036907728,295.07967713,0.00016438,2]
[404290790,1770037057539,533.95,0.00039205,68]
[404290791,1770037070675,172.87,0.00039205,68]
[404290792,1770037083711,170.39,0.00039205,68]
[404290793,1770037090513,167.98,0.00039205,68]
[404290794,1770037104511,165.63,0.00039205,68]
[404290799,1770037170820,4022.0,0.00039205,30]
[404290802,1770037264311,500.0,0.00013273,2]
[404290803,1770037264348,594.86628206,0.00013821,2]
[404290804,1770037264388,500.0,0.00013699,2]
[404290805,1770037264427,497.60440429,0.00014247,2]
[404290806,1770037264610,181.96269739,0.00013273,2]
[404290860,1770037628131,-2854.24964528,0.000252,3]
[404290861,1770037640128,-347.29955501,0.000252,3]
[404290862,1770037641097,-233.28079971,0.000252,3]
[404290863,1770037641121,-179.74165615,0.00032662,10]
[404290864,1770037641151,-191.67859845,0.00032662,10]
[404290865,1770037641179,-425.02120771,0.00033644,120]
[404290866,1770037641206,-3401.28358479,0.00033931,2]
[404290907,1770037756101,-150.0,0.0002589,2]
[404290908,1770037756122,-177.0,0.0002789,2]
[404290909,1770037756144,-194.92581586,0.0002989,2]
[404290910,1770037756168,-1598.71641521,0.00033931,2]
[404290911,1770037756190,-347.0480256,0.00034274,2]
[404290926,1770037832029,-6231.8009985,0.00035891,2]
[404290927,1770037832038,-150.07,0.00036465,60]
[404290928,1770037832047,-150.81,0.00036472,60]
[404290929,1770037832056,-150.07,0.00036565,60]
[404290930,1770037832066,-150.81,0.00036572,60]
[404290931,1770037832074,-150.07,0.00036665,60]
[404290932,1770037832084,-150.81,0.00036672,60]
[404290933,1770037832093,-150.07,0.00036765,60]
[404290934,1770037832102,-150.81,0.00036772,60]
[404290935,1770037832111,-150.07,0.00036865,60]
[404290936,1770037832119,-150.81,0.00036872,60]
[404290937,1770037832128,-150.07,0.00036965,60]
[404290938,1770037832137,-150.81,0.00036972,60]
[404290939,1770037832146,-150.07,0.00037065,60]
[404290941,1770037832156,-641.75190908,0.00037071,15]
[404290943,1770037832165,-5679.24435803,0.00037072,2]
[404290946,1770037832174,-150.81,0.00037072,60]
[404290947,1770037832185,-150.07,0.00037165,60]
[404290948,1770037832198,-150.81,0.00037172,60]
[404290949,1770037832207,-1000.76427012,0.000372,15]
[404290950,1770037832216,-150.07,0.00037265,60]
[404290951,1770037832225,-150.81,0.00037272,60]
[404290952,1770037832235,-150.07,0.00037365,60]
[404290953,1770037832243,-150.81,0.00037372,60]
[404290954,1770037832253,-150.07,0.00037465,60]
[404290955,1770037832263,-150.81,0.00037472,60]
[404290956,1770037832272,-180.608,0.00037524,48]
[404290957,1770037832281,-150.07,0.00037565,60]
[404290958,1770037832290,-150.81,0.00037572,60]
[404290959,1770037832299,-150.07,0.00037665,60]
[404290960,1770037832308,-150.81,0.00037672,60]
[404290961,1770037832317,-150.07,0.00037765,60]
[404290962,1770037832326,-150.07,0.00037865,60]
[404290963,1770037832336,-1627.480064,0.000379,28]
[404290964,1770037832346,-150.07,0.00037965,60]
[404290965,1770037832355,-150.07,0.00038065,60]
[404290966,1770037832363,-150.07,0.00038165,60]
[404290967,1770037832372,-150.07,0.00038265,60]
[404290968,1770037832382,-150.07,0.00038365,120]
[404290969,1770037832391,-1000.0,0.000384,28]
[404290970,1770037832400,-150.07,0.00038465,120]
[404290971,1770037832410,-150.07,0.00038565,120]
[404290972,1770037832419,-150.07,0.00038665,120]
[404290973,1770037832428,-150.07,0.00038765,120]
[404290974,1770037832437,-347.0480256,0.00038799,2]
[404290975,1770037832446,-150.07,0.00038865,120]
[404290976,1770037832455,-1000.0,0.000389,28]
[404290977,1770037832464,-150.07,0.00038965,120]
[404290978,1770037832473,-150.07,0.00039065,120]
[404290979,1770037832482,-626.12180841,0.00039065,120]
[404290980,1770037832491,-293.67040451,0.00039111,2]
[404290981,1770037832501,-188.30972788,0.00039111,2]
[404290982,1770037832510,-150.07,0.00039165,120]
[404290983,1770037832520,-867.17,0.00039195,10]
[404290984,1770037832529,-728.65065532,0.00039202,3]
[404290985,1770037832542,-1239.83931929,0.00039202,3]
[404290986,1770037832551,-500.0,0.00039204,15]
[404290987,1770037832560,-500.0,0.00039204,15]
[404290988,1770037832570,-242.38269048,0.00039204,15]
[404290989,1770037832579,-411.88383777,0.00039204,15]
[404290990,1770037832588,-5000.0,0.00039205,30]
[404290991,1770037832597,-12393.63289531,0.00039205,30]
[404290992,1770037832609,-4543.55715804,0.00039205,30]
[404291007,1770037838301,-9973.11090578,0.00039205,30]
[404291530,1770037845943,-44.84238604,0.00039205,30]
[404291532,1770037845955,-18814.99137857,0.00039205,30]
[404291536,1770037845978,-491.45826163,0.00039205,30]
[404291588,1770037846444,-16.74439426,0.00039205,30]
[404291605,1770037846589,-3721.82251234,0.00039205,30]
[404291833,1770037927599,617.73,0.00035014,120]
[404291839,1770038225591,500.0,0.00013699,2]
[404291840,1770038225649,194.33339783,0.00014247,2]
[404291897,1770038505568,154.922836,0.00039206,120]
[404291898,1770038505898,154.922836,0.00039206,120]
[404291899,1770038506177,154.922836,0.00039206,120]
[404291900,1770038506464,154.922836,0.00039206,120]
[404291901,1770038506746,154.922836,0.00039206,120]
[404291902,1770038507038,154.922836,0.00039206,120]
[404291903,1770038507643,154.922836,0.00039206,120]
[404291904,1770038507948,154.922836,0.00039206,120]
[404291905,1770038508247,154.922836,0.00039206,120]
[404291906,1770038508545,154.922836,0.00039206,120]
[404291907,1770038508832,154.922836,0.00039206,120]
[404291908,1770038509132,154.922836,0.00039206,120]
[404291909,1770038509448,154.922836,0.00039206,120]
[404291910,1770038509741,154.922836,0.00039206,120]
[404291911,1770038510071,154.922836,0.00039206,120]
[404291912,1770038510398,154.922836,0.00039206,120]
[404291913,1770038510696,154.922836,0.00039206,120]
[404291914,1770038510998,154.922836,0.00039206,120]
[404291915,1770038511291,154.922836,0.00039206,120]
[404291916,1770038511604,154.922831,0.00039206,120]
[404291929,1770038578429,2700.0,0.00039206,120]
[404291930,1770038578754,2700.0,0.00039206,120]
[404291931,1770038579059,2700.0,0.00039206,120]
[404291932,1770038579358,2700.0,0.00039206,120]
[404291933,1770038579644,2700.0,0.00039206,120]
[404291934,1770038580056,2700.0,0.00039206,120]
[404291935,1770038580351,2700.0,0.00039206,120]
[404291936,1770038580886,2700.0,0.00039206,120]
[404291937,1770038581431,2700.0,0.00039206,120]
[404291938,1770038581863,2700.0,0.00039206,120]
[404291939,1770038582179,2700.0,0.00039206,120]
[404291940,1770038582681,2700.0,0.00039206,120]
[404291941,1770038583027,2700.0,0.00039206,120]
[404291942,1770038583435,2700.0,0.00039206,120]
[404291943,1770038583959,2700.0,0.00039206,120]
[404291944,1770038584288,2700.0,0.00039206,120]
[404291945,1770038584673,2700.0,0.00039206,120]
[404291946,1770038585383,2700.0,0.00039206,120]
[404291947,1770038585888,2700.0,0.00039206,120]
[404291948,1770038586199,2700.0,0.00039206,120]
[404291950,1770038673333,356.123532,0.00039206,120]
[404291951,1770038673682,356.123532,0.00039206,120]
[404291952,1770038673982,356.123532,0.00039206,120]
[404291953,1770038674098,151.0,0.00039206,120]
[404291954,1770038674273,356.123532,0.00039206,120]
[404291955,1770038674402,151.0,0.00039206,120]
[404291956,1770038674570,356.123532,0.00039206,120]
[404291957,1770038674851,151.0,0.00039206,120]
[404291958,1770038674891,356.123532,0.00039206,120]
[404291959,1770038675237,151.0,0.00039206,120]
[404291960,1770038675427,356.123532,0.00039206,120]
[404291961,1770038675745,356.123532,0.00039206,120]
[404291962,1770038676100,356.123532,0.00039206,120]
[404291963,1770038676403,356.123532,0.00039206,120]
[404291964,1770038676814,356.123532,0.00039206,120]
[404291965,1770038677145,356.123532,0.00039206,120]
[404291966,1770038677559,356.123532,0.00039206,120]
[404291967,1770038678559,356.123532,0.00039206,120]
[404291968,1770038679113,356.123532,0.00039206,120]
[404291969,1770038679515,356.123532,0.00039206,120]
[404291970,1770038679807,356.123532,0.00039206,120]
[404291971,1770038680183,356.123532,0.00039206,120]
[404291972,1770038680505,356.123532,0.00039206,120]
[404291973,1770038680924,356.123541,0.00039206,120]
[404291975,1770038839137,-153.81851178,0.00036429,120]
[404291976,1770038839159,-210.96,0.00036467,60]
[404291977,1770038839179,-682.842821,0.0003653,2]
[404291978,1770038839198,-265.5703424,0.00036559,2]
[404291979,1770038839220,-185.7599504,0.00036567,60]
[404291980,1770038852085,-25.2195153,0.00036567,60]
[404291981,1770038852106,-2865.0990237,0.00036731,2]
[404291982,1770038852126,-382.72542879,0.00037435,2]
[404291983,1770038852146,-300.0,0.00037587,2]
[404291984,1770038852165,-165.0,0.00039,120]
[404291985,1770038852187,-707.6447348,0.0003906,2]
[404291986,1770038852207,-2933.6089297,0.0003906,2]
[404291987,1770038852227,-694.0960512,0.0003906,2]
[404291988,1770038852247,-1350.30701258,0.00039073,2]
[404291989,1770038852267,-177.066,0.00039106,53]
[404291990,1770038852286,-337.01826042,0.00039106,2]
[404291991,1770038852304,-1118.82655456,0.00039202,3]
[404291992,1770038852323,-334.94188757,0.00039204,120]
[404291993,1770038852342,-500.0,0.00039204,120]
[404291994,1770038852363,-192.64780978,0.00039205,30]
[404291995,1770038928472,-690.26614684,0.0001747,2]
[404291996,1770038929976,-287.99750527,0.0001747,2]
[404291997,1770038932153,-310.95791625,0.0001747,2]
[404291998,1770038934140,-254.7,0.0001747,2]
[404291999,1770038973143,-112.55856875,0.0001747,2]
[404292037,1770039032361,-4926.7224,0.00036,30]
[404292091,1770039038510,-286.98084873,0.00036,30]
[404292092,1770039038522,-2141.19048413,0.00036,30]
[404292093,1770039038825,-5583.14902315,0.00036,30]
[404292132,1770039040570,-5876.94862256,0.00036,30]
[404292134,1770039040580,-257.82307287,0.00037398,2]
[404292136,1770039040590,-707.6447351,0.00039011,2]
[404292138,1770039040599,-10842.35867875,0.00039205,30]
[404292154,1770039040725,-4131.76965707,0.00039205,30]
[404292751,1770039046646,-200.0,0.00038,120]
[404292752,1770039046655,-2333.06396243,0.00039205,30]
[404292753,1770039046664,-500.0,0.00039205,15]
[404292754,1770039046673,-168.58310402,0.00039205,15]
[404292755,1770039046682,-307.98656978,0.00039205,15]
[404292756,1770039046691,-212.20055206,0.00039205,15]
[404292790,1770039048503,-287.79944794,0.00039205,15]
[404292791,1770039048513,-222.6102362,0.00039206,30]
[404292792,1770039048568,-777.3897638,0.00039206,30]
[404292793,1770039048584,-1000.0,0.00039206,30]
[404292794,1770039048594,-1000.0,0.00039206,30]
[404292795,1770039048607,-1000.0,0.00039206,30]
[404292796,1770039048617,-1000.0,0.00039206,30]
[404292797,1770039048627,-1000.0,0.00039206,30]
[404292798,1770039048636,-1000.0,0.00039206,30]
[404292799,1770039048647,-1000.0,0.00039206,30]
[404292800,1770039048657,-1000.0,0.00039206,30]
[404292801,1770039048667,-1000.0,0.00039206,30]
[404292802,1770039048676,-1000.0,0.00039206,30]
[404292803,1770039048689,-1000.0,0.00039206,30]
[404292804,1770039048699,-1000.0,0.00039206,30]
[404292805,1770039048708,-1000.0,0.00039206,30]
[404292806,1770039048717,-1000.0,0.00039206,30]
[404292807,1770039048726,-1000.0,0.00039206,30]
[404292808,1770039048735,-1000.0,0.00039206,30]
[404292809,1770039048744,-1000.0,0.00039206,30]
[404292810,1770039048755,-1000.0,0.00039206,30]
[404292811,1770039048764,-37.60161477,0.00039206,30]
[404292870,1770039932121,-150.0,0.0002589,2]
[404292871,1770039932140,-479.93934409,0.00036068,5]
[404292872,1770040027143,-1020.16443357,0.00036068,5]
[404292873,1770040027290,-164.527307,0.00036069,60]
[404292874,1770040027312,-2080.83805029,0.00037686,2]
[404292875,1770040047141,-350.97883626,0.00037686,2]
[404292876,1770040052097,-501.79204305,0.00037686,2]
[404292877,1770040052117,-196.68752571,0.00038616,2]
[404292880,1770040144229,500.0,0.00013699,2]
[404292881,1770040144277,502.01692854,0.00014247,2]
[404292884,1770040203787,2234.02712677,0.00037244,10]
[404293556,1770040246166,-422.0,0.00037244,10]
[404293558,1770040246175,-36.65044147,0.00037244,10]